[Event "*** SCC Grand Prix: Titled Tuesday Blitz"]
[Site "Chess.com"]
[Date "2020.09.08"]
[Round "6"]
[White "gumimis"]
[Black "Kaslask"]
[Result "1/2-1/2"]
[WhiteElo "2203"]
[BlackElo "2288"]
[TimeControl "180+1"]
[EndTime "11:08:24 PDT"]
[Termination "Game drawn - insufficient material"]

1. e4 {[%clk 0:03:00.8]} 1... e6 {[%clk 0:02:58.2]} 2. d4 {[%clk 0:02:58.2]}
2... d5 {[%clk 0:02:56.6]} 3. Nc3 {[%clk 0:02:57.2]} 3... Bb4 {[%clk 0:02:55.4]}
4. e5 {[%clk 0:02:56.3]} 4... Ne7 {[%clk 0:02:51.2]} 5. a3 {[%clk 0:02:54.4]}
5... Bxc3+ {[%clk 0:02:50.4]} 6. bxc3 {[%clk 0:02:55.3]} 6... c5 {[%clk
0:02:50.6]} 7. Qg4 {[%clk 0:02:55.4]} 7... cxd4 {[%clk 0:02:48.9]} 8. cxd4
{[%clk 0:02:32.1]} 8... Qc7 {[%clk 0:02:46.1]} 9. Bd2 {[%clk 0:02:22.6]} 9...
Kf8 {[%clk 0:02:43.5]} 10. Bd3 {[%clk 0:02:19.9]} 10... b6 {[%clk 0:02:42.6]}
11. Ne2 {[%clk 0:02:12.5]} 11... Ba6 {[%clk 0:02:42.2]} 12. Bxa6 {[%clk
0:02:05.8]} 12... Nxa6 {[%clk 0:02:41.3]} 13. c3 {[%clk 0:02:06.2]} 13... Rc8
{[%clk 0:02:37.5]} 14. h4 {[%clk 0:02:04.6]} 14... Nb8 {[%clk 0:02:27.7]} 15. h5
{[%clk 0:02:00.3]} 15... h6 {[%clk 0:02:26.9]} 16. Rh3 {[%clk 0:01:59.2]} 16...
Nbc6 {[%clk 0:02:20.7]} 17. Rf3 {[%clk 0:01:50.4]} 17... Nd8 {[%clk 0:02:07.9]}
18. Nf4 {[%clk 0:01:36.4]} 18... Nf5 {[%clk 0:02:05.2]} 19. Qh3 {[%clk
0:01:29.7]} 19... Qe7 {[%clk 0:01:58]} 20. g4 {[%clk 0:01:26]} 20... Nh4 {[%clk
0:01:32.4]} 21. Qxh4 {[%clk 0:01:25.8]} 21... Qxh4 {[%clk 0:01:29.3]} 22. Ng6+
{[%clk 0:01:26]} 22... Ke8 {[%clk 0:01:27.6]} 23. Nxh4 {[%clk 0:01:26.6]} 23...
Nc6 {[%clk 0:01:27.4]} 24. Ke2 {[%clk 0:01:21.3]} 24... Na5 {[%clk 0:01:26.9]}
25. Ng2 {[%clk 0:01:19.5]} 25... Rc4 {[%clk 0:01:26.1]} 26. Ne3 {[%clk
0:01:18.6]} 26... Ra4 {[%clk 0:01:25.8]} 27. Rh3 {[%clk 0:01:14.3]} 27... Ke7
{[%clk 0:01:25.5]} 28. Rhh1 {[%clk 0:01:14]} 28... Rc8 {[%clk 0:01:23.4]} 29.
Rhb1 {[%clk 0:01:13.5]} 29... f6 {[%clk 0:01:18.8]} 30. exf6+ {[%clk 0:01:09.5]}
30... gxf6 {[%clk 0:01:17.9]} 31. Rb4 {[%clk 0:01:09.4]} 31... Rxb4 {[%clk
0:01:15.7]} 32. axb4 {[%clk 0:01:09.6]} 32... Nc6 {[%clk 0:01:15.7]} 33. b5
{[%clk 0:01:03]} 33... Na5 {[%clk 0:01:14.4]} 34. c4 {[%clk 0:01:00.6]} 34...
dxc4 {[%clk 0:01:10.6]} 35. Bxa5 {[%clk 0:00:59.9]} 35... bxa5 {[%clk
0:01:08.9]} 36. Rxa5 {[%clk 0:01:00.1]} 36... Rc7 {[%clk 0:01:08.3]} 37. Kd2
{[%clk 0:00:55.6]} 37... c3+ {[%clk 0:01:07.5]} 38. Kc2 {[%clk 0:00:54.3]} 38...
Kd6 {[%clk 0:01:06]} 39. Ra6+ {[%clk 0:00:52.3]} 39... Kd7 {[%clk 0:01:05.9]}
40. Ra3 {[%clk 0:00:51.7]} 40... Rb7 {[%clk 0:01:05.8]} 41. Kxc3 {[%clk
0:00:49.1]} 41... Rxb5 {[%clk 0:01:05.2]} 42. Rxa7+ {[%clk 0:00:49.3]} 42... Kd6
{[%clk 0:01:05.3]} 43. Rh7 {[%clk 0:00:41.2]} 43... Rb1 {[%clk 0:01:04.5]} 44.
Rxh6 {[%clk 0:00:40.5]} 44... Ke7 {[%clk 0:01:04.1]} 45. Rh7+ {[%clk 0:00:40.7]}
45... Kf8 {[%clk 0:01:03.5]} 46. Rd7 {[%clk 0:00:39]} 46... Rc1+ {[%clk
0:01:00.9]} 47. Kd3 {[%clk 0:00:38.1]} 47... Rg1 {[%clk 0:00:59]} 48. h6 {[%clk
0:00:37.7]} 48... Kg8 {[%clk 0:00:58.1]} 49. h7+ {[%clk 0:00:37.1]} 49... Kh8
{[%clk 0:00:58.1]} 50. f4 {[%clk 0:00:36.7]} 50... e5 {[%clk 0:00:57.1]} 51.
dxe5 {[%clk 0:00:35.2]} 51... fxe5 {[%clk 0:00:57.1]} 52. fxe5 {[%clk
0:00:35.7]} 52... Rd1+ {[%clk 0:00:52.1]} 53. Ke4 {[%clk 0:00:30.1]} 53... Rxd7
{[%clk 0:00:51.3]} 54. e6 {[%clk 0:00:29]} 54... Re7 {[%clk 0:00:48.4]} 55. Ke5
{[%clk 0:00:28.3]} 55... Kxh7 {[%clk 0:00:47.8]} 56. Kd6 {[%clk 0:00:25.1]}
56... Re8 {[%clk 0:00:45.7]} 57. Kd7 {[%clk 0:00:23.9]} 57... Ra8 {[%clk
0:00:40]} 58. e7 {[%clk 0:00:23.9]} 58... Ra7+ {[%clk 0:00:39.9]} 59. Ke6 {[%clk
0:00:22.2]} 59... Ra6+ {[%clk 0:00:34.1]} 60. Kf7 {[%clk 0:00:22.4]} 60... Ra7
{[%clk 0:00:34]} 61. g5 {[%clk 0:00:22.5]} 61... Rxe7+ {[%clk 0:00:31.9]} 62.
Kxe7 {[%clk 0:00:16.9]} 62... Kg6 {[%clk 0:00:31]} 63. Nf5 {[%clk 0:00:11.7]}
63... Kxg5 {[%clk 0:00:30.6]} 1/2-1/2

[Event "*** SCC Grand Prix: Titled Tuesday Blitz"]
[Site "Chess.com"]
[Date "2020.09.08"]
[Round "6"]
[White "anon481216"]
[Black "MariaFominykh"]
[Result "1/2-1/2"]
[WhiteElo "2448"]
[BlackElo "2344"]
[TimeControl "180+1"]
[EndTime "11:08:26 PDT"]
[Termination "Game drawn by repetition"]

1. d4 {[%clk 0:03:00.9]} 1... Nf6 {[%clk 0:03:00]} 2. c4 {[%clk 0:03:00.4]} 2...
g6 {[%clk 0:03:00.5]} 3. Nc3 {[%clk 0:02:59.2]} 3... Bg7 {[%clk 0:03:01]} 4. e4
{[%clk 0:02:58.9]} 4... d6 {[%clk 0:03:01.2]} 5. Be2 {[%clk 0:02:59.5]} 5... O-O
{[%clk 0:02:59.5]} 6. Bg5 {[%clk 0:02:59.5]} 6... c5 {[%clk 0:02:59.1]} 7. d5
{[%clk 0:02:58.5]} 7... e6 {[%clk 0:02:54.9]} 8. Qd2 {[%clk 0:02:49.2]} 8...
exd5 {[%clk 0:02:49.8]} 9. exd5 {[%clk 0:02:48.2]} 9... Bf5 {[%clk 0:02:46.4]}
10. Nf3 {[%clk 0:02:45.2]} 10... Re8 {[%clk 0:02:44.9]} 11. O-O {[%clk
0:02:44.7]} 11... Na6 {[%clk 0:02:38]} 12. Nh4 {[%clk 0:02:36.3]} 12... Bd7
{[%clk 0:02:34.1]} 13. Bd3 {[%clk 0:02:23.1]} 13... Nb4 {[%clk 0:02:10]} 14. Bb1
{[%clk 0:02:22.2]} 14... Qe7 {[%clk 0:01:55.5]} 15. a3 {[%clk 0:02:19.4]} 15...
Na6 {[%clk 0:01:55]} 16. Bd3 {[%clk 0:02:16]} 16... Nc7 {[%clk 0:01:44.7]} 17.
Rfe1 {[%clk 0:02:12.4]} 17... Qf8 {[%clk 0:01:44.8]} 18. Qf4 {[%clk 0:01:55.1]}
18... Nh5 {[%clk 0:01:42.2]} 19. Qf3 {[%clk 0:01:54.5]} 19... f5 {[%clk
0:01:18.5]} 20. g3 {[%clk 0:01:41.9]} 20... Rxe1+ {[%clk 0:01:16.6]} 21. Rxe1
{[%clk 0:01:41.3]} 21... Re8 {[%clk 0:01:10.2]} 22. Rb1 {[%clk 0:01:30.6]} 22...
Nf6 {[%clk 0:00:56]} 23. h3 {[%clk 0:01:18.3]} 23... a6 {[%clk 0:00:45.8]} 24.
a4 {[%clk 0:01:11.8]} 24... Qf7 {[%clk 0:00:34.1]} 25. a5 {[%clk 0:01:04.6]}
25... Nh5 {[%clk 0:00:27.3]} 26. Bd2 {[%clk 0:00:56.2]} 26... Bf6 {[%clk
0:00:22.7]} 27. Ng2 {[%clk 0:00:53.9]} 27... Bd4 {[%clk 0:00:20.6]} 28. Kf1
{[%clk 0:00:47.4]} 28... Nf6 {[%clk 0:00:19.6]} 29. Ne2 {[%clk 0:00:34.4]} 29...
Ne4 {[%clk 0:00:19.7]} 30. Bxe4 {[%clk 0:00:32.7]} 30... fxe4 {[%clk 0:00:20]}
31. Qxf7+ {[%clk 0:00:31.5]} 31... Kxf7 {[%clk 0:00:20.9]} 32. g4 {[%clk
0:00:28.6]} 32... Bg7 {[%clk 0:00:19.2]} 33. b4 {[%clk 0:00:27.8]} 33... cxb4
{[%clk 0:00:17]} 34. Bxb4 {[%clk 0:00:26.9]} 34... Be5 {[%clk 0:00:15.8]} 35.
Bc3 {[%clk 0:00:26.2]} 35... Bc8 {[%clk 0:00:15.1]} 36. Ne3 {[%clk 0:00:23.5]}
36... Na8 {[%clk 0:00:12.1]} 37. Bxe5 {[%clk 0:00:20.2]} 37... Rxe5 {[%clk
0:00:11.9]} 38. Kg2 {[%clk 0:00:20.5]} 38... Re7 {[%clk 0:00:10.7]} 39. Nd4
{[%clk 0:00:20.1]} 39... Rc7 {[%clk 0:00:10.4]} 40. Kg3 {[%clk 0:00:19.9]} 40...
Rc5 {[%clk 0:00:10.6]} 41. Ra1 {[%clk 0:00:18.9]} 41... b6 {[%clk 0:00:10.8]}
42. axb6 {[%clk 0:00:18.8]} 42... Nxb6 {[%clk 0:00:11.7]} 43. Rc1 {[%clk
0:00:15.5]} 43... a5 {[%clk 0:00:11.3]} 44. Kf4 {[%clk 0:00:15.3]} 44... Ba6
{[%clk 0:00:10.7]} 45. Kxe4 {[%clk 0:00:15.2]} 45... Nxc4 {[%clk 0:00:10.7]} 46.
Nxc4 {[%clk 0:00:14]} 46... Bxc4 {[%clk 0:00:10.5]} 47. Rb1 {[%clk 0:00:08.7]}
47... Bxd5+ {[%clk 0:00:10.7]} 48. Kf4 {[%clk 0:00:09]} 48... a4 {[%clk
0:00:10.9]} 49. Ra1 {[%clk 0:00:07.9]} 49... Rc4 {[%clk 0:00:10.7]} 50. Ke3
{[%clk 0:00:08.1]} 50... Rc3+ {[%clk 0:00:10.3]} 51. Kd2 {[%clk 0:00:07.7]}
51... Rc4 {[%clk 0:00:10.5]} 52. Kd3 {[%clk 0:00:07.5]} 52... Rb4 {[%clk
0:00:10.4]} 53. Kc3 {[%clk 0:00:06.9]} 53... Rc4+ {[%clk 0:00:09.7]} 54. Kd3
{[%clk 0:00:07.1]} 54... Rb4 {[%clk 0:00:09.7]} 55. Kc3 {[%clk 0:00:07]} 55...
Rc4+ {[%clk 0:00:09.2]} 56. Kd3 {[%clk 0:00:07.2]} 1/2-1/2

[Event "*** SCC Grand Prix: Titled Tuesday Blitz"]
[Site "Chess.com"]
[Date "2020.09.08"]
[Round "6"]
[White "latixxa"]
[Black "Nara_Kh"]
[Result "1-0"]
[WhiteElo "2161"]
[BlackElo "2391"]
[TimeControl "180+1"]
[EndTime "11:08:26 PDT"]
[Termination "latixxa won by checkmate"]

1. c4 {[%clk 0:03:00.9]} 1... e5 {[%clk 0:02:54]} 2. Nc3 {[%clk 0:03:01.3]} 2...
Bb4 {[%clk 0:02:53.2]} 3. Nf3 {[%clk 0:03:01.8]} 3... d6 {[%clk 0:02:51.4]} 4.
Nd5 {[%clk 0:03:01]} 4... Bc5 {[%clk 0:02:48.5]} 5. e3 {[%clk 0:02:59.2]} 5...
c6 {[%clk 0:02:47.4]} 6. Nc3 {[%clk 0:02:57.1]} 6... Nf6 {[%clk 0:02:46.7]} 7.
d4 {[%clk 0:02:56]} 7... exd4 {[%clk 0:02:45.9]} 8. exd4 {[%clk 0:02:56.9]} 8...
Bb4 {[%clk 0:02:46.1]} 9. Bd3 {[%clk 0:02:56.5]} 9... O-O {[%clk 0:02:46.3]} 10.
O-O {[%clk 0:02:56.8]} 10... d5 {[%clk 0:02:45.2]} 11. h3 {[%clk 0:02:49.7]}
11... Na6 {[%clk 0:02:35]} 12. a3 {[%clk 0:02:48.2]} 12... Bd6 {[%clk
0:02:26.7]} 13. Bg5 {[%clk 0:02:45]} 13... Nc7 {[%clk 0:02:24.7]} 14. Rc1 {[%clk
0:02:40.7]} 14... dxc4 {[%clk 0:02:08.6]} 15. Bxc4 {[%clk 0:02:39.1]} 15... Bf5
{[%clk 0:02:09]} 16. d5 {[%clk 0:02:30.9]} 16... b5 {[%clk 0:01:59.4]} 17. Bb3
{[%clk 0:02:29.2]} 17... c5 {[%clk 0:01:58.7]} 18. Re1 {[%clk 0:02:23.6]} 18...
h6 {[%clk 0:01:54.8]} 19. Be3 {[%clk 0:02:17.6]} 19... a6 {[%clk 0:01:41.2]} 20.
Qd2 {[%clk 0:02:11.7]} 20... Qd7 {[%clk 0:01:26.4]} 21. Bf4 {[%clk 0:02:08.4]}
21... Rfe8 {[%clk 0:01:22.9]} 22. Rcd1 {[%clk 0:02:00.8]} 22... Ne4 {[%clk
0:01:14.3]} 23. Nxe4 {[%clk 0:01:57.9]} 23... Bxe4 {[%clk 0:01:14.7]} 24. Bxh6
{[%clk 0:01:25.4]} 24... gxh6 {[%clk 0:00:55.9]} 25. Qxh6 {[%clk 0:01:26.3]}
25... Bf8 {[%clk 0:00:39.2]} 26. Qg5+ {[%clk 0:01:23.6]} 26... Bg7 {[%clk
0:00:38.7]} 27. Nh4 {[%clk 0:01:14.2]} 27... c4 {[%clk 0:00:31.8]} 28. Ba2
{[%clk 0:00:44]} 28... Nxd5 {[%clk 0:00:25.4]} 29. Rxe4 {[%clk 0:00:30.6]} 29...
Rxe4 {[%clk 0:00:24.7]} 30. Rxd5 {[%clk 0:00:31]} 30... Re1+ {[%clk 0:00:11.2]}
31. Kh2 {[%clk 0:00:31.2]} 31... Qc7+ {[%clk 0:00:11.2]} 32. g3 {[%clk
0:00:31.5]} 32... Kf8 {[%clk 0:00:10.3]} 33. Nf5 {[%clk 0:00:29.5]} 33... Bxb2
{[%clk 0:00:07.8]} 34. Qd2 {[%clk 0:00:23.5]} 34... Re5 {[%clk 0:00:04.3]} 35.
Qxb2 {[%clk 0:00:19.8]} 35... c3 {[%clk 0:00:04.3]} 36. Qb3 {[%clk 0:00:14.3]}
36... Kg8 {[%clk 0:00:04.7]} 37. Rxe5 {[%clk 0:00:14]} 37... c2 {[%clk
0:00:03.5]} 38. Re1 {[%clk 0:00:11.7]} 38... Rf8 {[%clk 0:00:02.1]} 39. Rc1
{[%clk 0:00:10.7]} 39... Qc5 {[%clk 0:00:02.4]} 40. Qd3 {[%clk 0:00:08.2]} 40...
Qe5 {[%clk 0:00:01.9]} 41. Kh1 {[%clk 0:00:08.7]} 41... Qf6 {[%clk 0:00:01.8]}
42. Rxc2 {[%clk 0:00:08.8]} 42... Qg5 {[%clk 0:00:02.2]} 43. Re2 {[%clk
0:00:08.9]} 43... Qh5 {[%clk 0:00:02.2]} 44. Kh2 {[%clk 0:00:09.8]} 44... Qg5
{[%clk 0:00:02.6]} 45. Qe3 {[%clk 0:00:09.5]} 45... Qh5 {[%clk 0:00:02.7]} 46.
g4 {[%clk 0:00:09.9]} 46... Qg6 {[%clk 0:00:02.8]} 47. Qf3 {[%clk 0:00:10.5]}
47... Qf6 {[%clk 0:00:03.1]} 48. Bb1 {[%clk 0:00:11]} 48... Qg5 {[%clk
0:00:03.5]} 49. Qg3 {[%clk 0:00:10]} 49... Qc1 {[%clk 0:00:03.7]} 50. f4 {[%clk
0:00:10.3]} 50... Qc4 {[%clk 0:00:03.9]} 51. Rg2 {[%clk 0:00:09]} 51... Qc1
{[%clk 0:00:04]} 52. Qh4 {[%clk 0:00:09.4]} 52... Qxb1 {[%clk 0:00:03.9]} 53.
Qg5+ {[%clk 0:00:09.8]} 53... Kh7 {[%clk 0:00:03.2]} 54. Qg7# {[%clk 0:00:10.7]}
1-0

[Event "*** SCC Grand Prix: Titled Tuesday Blitz"]
[Site "Chess.com"]
[Date "2020.09.08"]
[Round "6"]
[White "UCantHandleDenker"]
[Black "BocharovD"]
[Result "0-1"]
[WhiteElo "2599"]
[BlackElo "2796"]
[TimeControl "180+1"]
[EndTime "11:08:27 PDT"]
[Termination "BocharovD won on time"]

1. Nf3 {[%clk 0:03:00.9]} 1... c5 {[%clk 0:02:56.8]} 2. g3 {[%clk 0:03:00.6]}
2... g6 {[%clk 0:02:56.2]} 3. Bg2 {[%clk 0:02:59.9]} 3... Bg7 {[%clk 0:02:56.9]}
4. O-O {[%clk 0:02:52]} 4... Nc6 {[%clk 0:02:57]} 5. d3 {[%clk 0:02:52.1]} 5...
e5 {[%clk 0:02:56.5]} 6. Nbd2 {[%clk 0:02:52.2]} 6... Nge7 {[%clk 0:02:56.2]} 7.
e4 {[%clk 0:02:53.1]} 7... O-O {[%clk 0:02:55.7]} 8. c3 {[%clk 0:02:54]} 8... h6
{[%clk 0:02:53.2]} 9. a3 {[%clk 0:02:54]} 9... d5 {[%clk 0:02:50.7]} 10. b4
{[%clk 0:02:51.1]} 10... c4 {[%clk 0:02:50.9]} 11. dxc4 {[%clk 0:02:49.8]} 11...
dxe4 {[%clk 0:02:47.7]} 12. Nxe4 {[%clk 0:02:48.6]} 12... f5 {[%clk 0:02:47.9]}
13. Nd6 {[%clk 0:01:45.4]} 13... e4 {[%clk 0:02:47]} 14. Ne1 {[%clk 0:01:17.8]}
14... Bxc3 {[%clk 0:02:39.4]} 15. Bxh6 {[%clk 0:01:17.1]} 15... Bxa1 {[%clk
0:02:35.5]} 16. Qxa1 {[%clk 0:01:15.6]} 16... Rf7 {[%clk 0:02:27.5]} 17. Nxf7
{[%clk 0:01:14]} 17... Kxf7 {[%clk 0:02:27.8]} 18. Qg7+ {[%clk 0:01:13]} 18...
Ke6 {[%clk 0:02:28]} 19. Nc2 {[%clk 0:01:11.9]} 19... Qd3 {[%clk 0:02:13.7]} 20.
Ne3 {[%clk 0:01:09.4]} 20... Qd4 {[%clk 0:02:14.1]} 21. Qf8 {[%clk 0:01:06]}
21... Qf6 {[%clk 0:02:09.6]} 22. Qe8 {[%clk 0:00:58.7]} 22... Qf7 {[%clk
0:02:03.6]} 23. Qh8 {[%clk 0:00:57.7]} 23... Qf6 {[%clk 0:02:03.1]} 24. Qe8
{[%clk 0:00:54.4]} 24... Qf7 {[%clk 0:02:02.8]} 25. Qh8 {[%clk 0:00:53.3]} 25...
Qf6 {[%clk 0:01:55.8]} 26. Bg7 {[%clk 0:00:51.9]} 26... Qf7 {[%clk 0:01:55.9]}
27. Ba1 {[%clk 0:00:50.9]} 27... Qg8 {[%clk 0:01:34.9]} 28. Qf6+ {[%clk
0:00:48.5]} 28... Kd7 {[%clk 0:01:34.4]} 29. Rd1+ {[%clk 0:00:48.1]} 29... Ke8
{[%clk 0:01:34.7]} 30. Nd5 {[%clk 0:00:43.6]} 30... Nxd5 {[%clk 0:01:33.7]} 31.
Rxd5 {[%clk 0:00:44]} 31... Qf7 {[%clk 0:01:30.9]} 32. Qh8+ {[%clk 0:00:42.2]}
32... Qf8 {[%clk 0:01:31.3]} 33. Qh7 {[%clk 0:00:39.7]} 33... Qf7 {[%clk
0:01:31.6]} 34. Qh8+ {[%clk 0:00:39.8]} 34... Qf8 {[%clk 0:01:31.7]} 35. Qc3
{[%clk 0:00:40.4]} 35... Be6 {[%clk 0:01:29.9]} 36. Rd1 {[%clk 0:00:34.9]} 36...
Rd8 {[%clk 0:01:27.3]} 37. Rxd8+ {[%clk 0:00:33.7]} 37... Nxd8 {[%clk
0:01:19.6]} 38. c5 {[%clk 0:00:28.9]} 38... Qe7 {[%clk 0:01:15.4]} 39. Bf1
{[%clk 0:00:28.2]} 39... Nc6 {[%clk 0:01:12.7]} 40. b5 {[%clk 0:00:26.8]} 40...
Nd8 {[%clk 0:01:05.3]} 41. a4 {[%clk 0:00:27.2]} 41... Bd5 {[%clk 0:01:02.6]}
42. a5 {[%clk 0:00:25.3]} 42... Kd7 {[%clk 0:00:58.5]} 43. a6 {[%clk 0:00:23.9]}
43... bxa6 {[%clk 0:00:55.3]} 44. c6+ {[%clk 0:00:23.5]} 44... Kc8 {[%clk
0:00:55.5]} 45. Qd4 {[%clk 0:00:15.9]} 45... Bf7 {[%clk 0:00:54.4]} 46. Bc3
{[%clk 0:00:11.3]} 46... Be8 {[%clk 0:00:40.5]} 47. Ba5 {[%clk 0:00:08.9]} 47...
axb5 {[%clk 0:00:37.6]} 48. Bxb5 {[%clk 0:00:04.6]} 48... Nxc6 {[%clk
0:00:36.5]} 49. Qc4 {[%clk 0:00:04.8]} 49... Qd6 {[%clk 0:00:31]} 50. Bc3 {[%clk
0:00:04.3]} 50... Kb7 {[%clk 0:00:25.7]} 51. Qb3 {[%clk 0:00:02.1]} 51... Kc7
{[%clk 0:00:20.2]} 52. Bc4 {[%clk 0:00:02.5]} 52... Qc5 {[%clk 0:00:18.9]} 53.
Qa2 {[%clk 0:00:02.5]} 53... a5 {[%clk 0:00:15.3]} 0-1

[Event "*** SCC Grand Prix: Titled Tuesday Blitz"]
[Site "Chess.com"]
[Date "2020.09.08"]
[Round "6"]
[White "Ba_clbaf_osed_ingo_3v21"]
[Black "NotFischer"]
[Result "1-0"]
[WhiteElo "2535"]
[BlackElo "2247"]
[TimeControl "180+1"]
[EndTime "11:08:28 PDT"]
[Termination "Ba_clbaf_osed_ingo_3v21 won by resignation"]

1. Nf3 {[%clk 0:03:00.9]} 1... g6 {[%clk 0:02:59.4]} 2. c4 {[%clk 0:03:01.4]}
2... Bg7 {[%clk 0:02:59.6]} 3. d4 {[%clk 0:03:01.9]} 3... d6 {[%clk 0:03:00.5]}
4. e4 {[%clk 0:03:01]} 4... Nc6 {[%clk 0:03:00.5]} 5. h3 {[%clk 0:02:50.5]} 5...
Nf6 {[%clk 0:02:59.1]} 6. Nc3 {[%clk 0:02:48.5]} 6... e5 {[%clk 0:02:59.2]} 7.
dxe5 {[%clk 0:02:41]} 7... Nxe5 {[%clk 0:02:59.3]} 8. Nxe5 {[%clk 0:02:23.9]}
8... dxe5 {[%clk 0:03:00.2]} 9. Qxd8+ {[%clk 0:02:23]} 9... Kxd8 {[%clk
0:03:01.1]} 10. Bg5 {[%clk 0:02:21.3]} 10... c6 {[%clk 0:03:01.5]} 11. f4 {[%clk
0:02:13.9]} 11... h6 {[%clk 0:02:47.8]} 12. Bh4 {[%clk 0:02:12.3]} 12... exf4
{[%clk 0:02:35.7]} 13. e5 {[%clk 0:02:11]} 13... Re8 {[%clk 0:02:35.4]} 14.
O-O-O+ {[%clk 0:02:09.8]} 14... Kc7 {[%clk 0:02:23.1]} 15. exf6 {[%clk
0:01:57.6]} 15... Bf8 {[%clk 0:02:22.6]} 16. Bf2 {[%clk 0:01:54.4]} 16... g5
{[%clk 0:02:15.3]} 17. Be2 {[%clk 0:01:35]} 17... Bb4 {[%clk 0:02:10.9]} 18. Bg4
{[%clk 0:01:32.4]} 18... Bxc3 {[%clk 0:02:02.3]} 19. bxc3 {[%clk 0:01:31.7]}
19... Be6 {[%clk 0:02:02.7]} 20. Bxe6 {[%clk 0:01:12.3]} 20... Rxe6 {[%clk
0:02:03.6]} 21. Rhe1 {[%clk 0:01:11.5]} 21... Rae8 {[%clk 0:01:54.7]} 22. c5
{[%clk 0:00:55.3]} 22... h5 {[%clk 0:01:40.7]} 23. Rxe6 {[%clk 0:00:45.7]} 23...
Rxe6 {[%clk 0:01:40.5]} 24. Bd4 {[%clk 0:00:45.1]} 24... g4 {[%clk 0:01:36.2]}
25. hxg4 {[%clk 0:00:43.3]} 25... hxg4 {[%clk 0:01:37.1]} 26. Kd2 {[%clk
0:00:43]} 26... f3 {[%clk 0:01:05.6]} 27. gxf3 {[%clk 0:00:43.9]} 27... gxf3
{[%clk 0:01:06.5]} 28. Re1 {[%clk 0:00:35]} 28... f2 {[%clk 0:01:06.6]} 29. Bxf2
{[%clk 0:00:31]} 29... Rxf6 {[%clk 0:01:07]} 30. Bh4 {[%clk 0:00:22.8]} 30...
Rf5 {[%clk 0:00:56.3]} 31. Re7+ {[%clk 0:00:20.4]} 31... Kc8 {[%clk 0:00:56.3]}
32. Kd3 {[%clk 0:00:13.8]} 32... Rxc5 {[%clk 0:00:45.1]} 33. Rxf7 {[%clk
0:00:12.4]} 33... Ra5 {[%clk 0:00:45.5]} 34. Rf2 {[%clk 0:00:11.5]} 34... b5
{[%clk 0:00:42.1]} 35. Bf6 {[%clk 0:00:11.5]} 35... Kb7 {[%clk 0:00:40.4]} 36.
Bd4 {[%clk 0:00:11.7]} 36... Ra3 {[%clk 0:00:40.6]} 37. Bc5 {[%clk 0:00:10.6]}
37... Ra4 {[%clk 0:00:38.9]} 38. Rf7+ {[%clk 0:00:10]} 38... Kb8 {[%clk
0:00:38.8]} 39. a3 {[%clk 0:00:09.9]} 39... a5 {[%clk 0:00:38.9]} 40. Rf8+
{[%clk 0:00:08.4]} 40... Kb7 {[%clk 0:00:39.1]} 41. Rf7+ {[%clk 0:00:09.3]}
41... Kb8 {[%clk 0:00:39.3]} 42. Re7 {[%clk 0:00:07.4]} 42... Rc4 {[%clk
0:00:37.4]} 43. Bd6+ {[%clk 0:00:04.7]} 43... Kc8 {[%clk 0:00:36.4]} 44. Re4
{[%clk 0:00:05.1]} 44... Kd7 {[%clk 0:00:34.6]} 45. Bf8 {[%clk 0:00:03.1]} 45...
Rxe4 {[%clk 0:00:27.6]} 46. Kxe4 {[%clk 0:00:04]} 46... Kc7 {[%clk 0:00:21.9]}
47. Bc5 {[%clk 0:00:03.2]} 47... Kb7 {[%clk 0:00:22.2]} 48. Ke5 {[%clk
0:00:03.3]} 48... Ka6 {[%clk 0:00:23.1]} 49. Kd6 {[%clk 0:00:03.5]} 49... b4
{[%clk 0:00:23.6]} 50. cxb4 {[%clk 0:00:04.4]} 50... axb4 {[%clk 0:00:22.9]} 51.
axb4 {[%clk 0:00:04.8]} 51... Kb5 {[%clk 0:00:23.8]} 52. Kc7 {[%clk 0:00:05.4]}
52... Ka6 {[%clk 0:00:24.2]} 53. Kb8 {[%clk 0:00:05.2]} 53... Kb5 {[%clk
0:00:24.9]} 54. Kb7 {[%clk 0:00:05.5]} 54... Kc4 {[%clk 0:00:24.9]} 55. Kxc6
{[%clk 0:00:06.1]} 55... Kd3 {[%clk 0:00:23.9]} 56. b5 {[%clk 0:00:07]} 56...
Kc4 {[%clk 0:00:24.3]} 57. b6 {[%clk 0:00:07.9]} 1-0